bitfinex-derivatives/quotes_SOLF0:USTF0_20241103
["timestamp","ask_amount","ask_price","bid_price","bid_amount"]
[1730641252710,2.6514,162.48,162.36,1.2693]
[1730641253609,3.079,162.45,162.41,3.0796]
[1730641254211,2.6514,162.48,162.37,3.12]
[1730641254602,3.0794,162.43,162.39,3.0798]
[1730641254810,2.6514,162.48,162.39,3.0798]
[1730641255203,3.0788,162.46,162.39,3.0798]
[1730641255510,2.6514,162.48,162.39,3.0798]
[1730641255913,3.0794,162.43,162.39,3.0798]
[1730641256502,3.079,162.45,162.37,3.0804]
[1730641256708,1.3607,162.44,162.36,3.12]
[1730641257207,3.0802,162.39,162.36,3.12]
[1730641257409,1.3607,162.44,162.36,3.12]
[1730641257605,3.0796,162.42,162.36,3.12]
[1730641258312,1.3607,162.44,162.38,3.0801]
[1730641258512,3.0797,162.41,162.38,3.0801]
[1730641258815,1.3607,162.44,162.36,3.12]
[1730641259014,3.0795,162.42,162.36,6.2006]
[1730641259211,1.3607,162.44,162.36,3.12]
[1730641259519,3.08,162.4,162.37,3.0804]
[1730641259720,1.3607,162.44,162.36,3.12]
[1730641260016,1.3607,162.44,162.28,2.6238]
[1730641260318,1.3607,162.44,162.29,3.12]
[1730641260510,1.3607,162.44,162.28,2.6238]
[1730641260817,1.3607,162.44,162.29,3.12]
[1730641261319,3.0809,162.35,162.29,3.12]
[1730641261815,3.0809,162.35,162.3,3.12]
[1730641263419,3.0809,162.35,162.32,3.0813]
[1730641263617,3.12,162.4,162.28,2.6238]
[1730641263927,1.3312,162.39,162.28,2.6238]
[1730641264219,3.0808,162.35,162.28,2.6238]
[1730641264814,3.0807,162.36,162.28,2.6238]
[1730641265127,1.3312,162.39,162.28,2.6238]
[1730641265513,1.3312,162.39,162.31,3.0814]
[1730641266022,2.6681,162.39,162.31,3.0814]
[1730641266326,3.0811,162.34,162.31,3.0814]
[1730641268719,2.6681,162.39,162.28,1.2943]
[1730641268925,3.0809,162.35,162.32,3.0813]
[1730641270714,3.0807,162.36,162.28,1.2943]
[1730641270914,2.6681,162.39,162.29,3.0818]
[1730641271523,3.0813,162.33,162.29,3.0818]
[1730641272333,3.0814,162.32,162.29,3.0818]
[1730641272722,3.0821,162.29,162.24,1.3094]
[1730641272922,3.12,162.36,162.25,6.19035463]
[1730641273123,1.2892,162.35,162.25,6.19035463]
[1730641273833,3.082,162.29,162.26,3.0824]
[1730641275324,1.2892,162.35,162.25,3.07035463]
[1730641275518,1.2892,162.35,162.24,3.12]
[1730641277338,3.0818,162.3,162.27,3.0823]
[1730641278836,3.0824,162.27,162.24,3.0828]
[1730641279029,3.0824,162.27,162.24,6.2028]
[1730641279428,3.0824,162.27,162.25,6.19788829]
[1730641279629,3.0822,162.28,162.25,6.19788829]
[1730641281432,3.082,162.29,162.26,3.0825]
[1730641283338,3.0823,162.28,162.25,6.19788829]
[1730641283637,3.12,162.32,162.23,1.3149]
[1730641283847,3.0824,162.27,162.24,3.0828]
[1730641284029,3.0824,162.27,162.25,3.04201919]
[1730641286832,3.12,162.32,162.23,3.0829]
[1730641287335,3.0826,162.26,162.23,3.0829]
[1730641289637,3.0826,162.26,162.24,3.0829]
[1730641289846,3.0826,162.26,162.22,1.3305]
[1730641290148,3.082,162.29,162.26,3.0824]
[1730641292144,3.0814,162.32,162.25,6.254261]
[1730641292843,3.0814,162.32,162.29,3.0818]
[1730641293150,3.0814,162.32,162.25,6.254261]
[1730641293151,3.0811,162.34,162.25,6.254261]
[1730641294148,3.0812,162.33,162.3,3.0817]
[1730641297153,60.34914851,162.35,162.25,6.254261]
[1730641297546,4.3982,162.34,162.23,4.5176]
[1730641297855,3.0816,162.31,162.23,6.203]
[1730641298055,7.101,162.34,162.23,6.203]
[1730641298448,7.101,162.34,162.23,3.083]
[1730641298751,7.101,162.34,162.22,3.0831]
[1730641299053,3.0827,162.26,162.22,3.0831]
[1730641299444,3.12,162.3,162.22,3.0831]
[1730641299646,3.0828,162.25,162.21,6.2034]
[1730641301151,3.0828,162.25,162.22,3.0832]
[1730641303753,3.0823,162.28,162.23,3.0831]
[1730641304055,3.12,162.32,162.2,4.3879]
[1730641305055,3.0825,162.27,162.24,3.0827]
[1730641305452,3.12,162.32,162.2,3.12]
[1730641305653,3.0832,162.23,162.2,3.12]
[1730641306354,3.083,162.24,162.2,6.2035]
[1730641307149,3.083,162.24,162.21,3.0834]
[1730641307354,3.12,162.32,162.18,3.12]
[1730641307846,3.0832,162.23,162.2,3.0835]
[1730641312868,3.0833,162.22,162.19,3.0837]
[1730641313861,3.0833,162.22,162.17,4.4498]
[1730641314958,3.0833,162.22,162.2,3.0836]
[1730641315457,3.0836,162.21,162.18,3.0839]
[1730641316368,3.0836,162.21,162.18,3.084]
[1730641318170,3.0836,162.21,162.19,3.0838]
[1730641318968,3.0829,162.24,162.21,3.0833]
[1730641320378,3.9776,162.27,162.16,6.2374937]
[1730641321464,66.51094851,162.35,162.16,6.2374937]
[1730641321678,2.647,162.33,162.16,6.2374937]
[1730641322562,3.12,162.32,162.16,6.2374937]
[1730641322763,3.0823,162.27,162.16,6.2374937]
[1730641323174,3.12,162.32,162.16,6.2374937]
[1730641323371,3.0819,162.3,162.26,3.0824]
[1730641324379,3.082,162.29,162.26,3.0824]
[1730641325184,5.767,162.33,162.25,3.13449115]
[1730641325372,3.0818,162.3,162.27,3.0823]
[1730641327279,5.767,162.33,162.26,3.0825]
[1730641327482,5.767,162.33,162.25,3.13449115]
[1730641327990,3.0819,162.3,162.27,3.0823]
[1730641328592,5.767,162.33,162.19,2.6264]
[1730641328780,5.767,162.33,162.2,3.12]
[1730641328978,60.34914851,162.35,162.2,3.12]
[1730641329204,3.0809,162.35,162.25,3.0826]
[1730641329382,2.6353,162.39,162.26,7.1374]
[1730641329787,3.0812,162.33,162.3,3.0816]
[1730641332890,3.12,162.38,162.28,3.0821]
[1730641333192,3.12,162.38,162.25,3.12]
[1730641333397,3.0819,162.29,162.26,3.0824]
[1730641333590,3.0819,162.29,162.24,3.12]
[1730641333591,3.12,162.34,162.24,3.12]
[1730641333888,3.12,162.35,162.24,3.12]
[1730641334086,3.12,162.35,162.27,3.0822]
[1730641334484,3.0819,162.3,162.27,3.0822]
[1730641335287,3.0816,162.31,162.28,3.0821]
[1730641337211,3.0818,162.3,162.28,3.0821]
[1730641338984,3.0822,162.28,162.25,3.0826]
[1730641340314,3.0826,162.26,162.23,3.0829]
[1730641340602,3.0826,162.26,162.23,6.2029]
[1730641340787,3.0829,162.25,162.21,3.0833]
[1730641340992,3.0829,162.25,162.2,3.12]
[1730641341192,3.12,162.31,162.2,3.12]
[1730641341505,3.12,162.31,162.2,3.0836]
[1730641341695,3.12,162.31,162.18,3.12]
[1730641342494,21.6,162.31,162.16,35.72397743]
[1730641342805,3.0838,162.19,162.16,3.0844]
[1730641343307,3.0837,162.2,162.16,3.0844]
[1730641343800,1.3496,162.24,162.15,3.0845]
[1730641344901,3.0839,162.19,162.15,3.0845]
[1730641345103,4.023,162.24,162.14,3.12]
[1730641345406,3.0841,162.18,162.14,6.2047]
[1730641345900,3.0835,162.21,162.15,3.0846]
[1730641346087,4.023,162.24,162.15,3.0846]
[1730641346292,4.023,162.24,162.14,3.12]
[1730641346600,3.0836,162.21,162.17,3.0841]
[1730641347309,3.0837,162.2,162.17,3.0841]
[1730641348298,1.3496,162.24,162.14,3.12]
[1730641348498,3.0838,162.2,162.16,3.0844]
[1730641351001,1.3496,162.24,162.16,3.0844]
[1730641351203,3.0839,162.19,162.16,3.0844]
[1730641352704,3.0836,162.21,162.17,3.0842]
[1730641352907,1.3496,162.24,162.17,3.0842]
[1730641353505,3.0836,162.21,162.17,3.0842]
[1730641353901,1.3496,162.24,162.17,3.0842]
[1730641354210,3.0837,162.2,162.17,3.0842]
[1730641357611,1.3496,162.24,162.13,3.0850345]
[1730641357815,2.775,162.23,162.12,5.7885]
[1730641358006,2.775,162.23,162.12,2.6685]
[1730641358607,3.0846,162.15,162.12,5.7536]
[1730641358810,3.12,162.2,162.12,2.6685]
[1730641359315,3.0841,162.18,162.13,3.0849]
[1730641359615,3.12,162.2,162.13,3.0849]
[1730641360114,3.0844,162.16,162.13,3.0849]
[1730641361313,3.12,162.2,162.12,2.6685]
[1730641361503,5.895,162.23,162.12,2.6685]
[1730641361819,3.0841,162.18,162.15,3.0845]
[1730641362816,3.0841,162.18,162.16,3.0844]
[1730641364712,4.4696,162.24,162.14,3.12]
[1730641365518,3.0837,162.2,162.17,3.084]
[1730641365815,4.4696,162.24,162.14,3.12]
[1730641366113,3.0835,162.21,162.17,3.0842]
[1730641366313,4.4696,162.24,162.17,3.0842]
[1730641367414,3.0838,162.2,162.17,3.0842]
[1730641367611,1.3394,162.27,162.14,3.12]
[1730641367920,3.12,162.32,162.14,3.12]
[1730641368108,3.12,162.32,162.27,3.0823]
[1730641368317,3.082,162.29,162.23,3.12]
[1730641368610,3.12,162.34,162.25,3.0826]
[1730641369201,3.0821,162.29,162.25,3.0826]
[1730641370917,3.0817,162.31,162.23,3.12]
[1730641371113,4.017,162.35,162.23,3.12]
[1730641371114,1.4,162.35,162.23,3.12]
[1730641371512,3.0815,162.32,162.28,3.0819]
[1730641372024,3.0815,162.32,162.27,3.12]
[1730641372025,3.0815,162.32,162.29,3.0819]
[1730641373710,3.0815,162.32,162.27,3.12]
[1730641373711,3.0812,162.33,162.3,3.0816]
[1730641374023,3.0812,162.33,162.27,3.12]
[1730641374518,1.4,162.35,162.29,3.0818]
[1730641374710,3.0814,162.32,162.29,3.0818]
[1730641375719,1.4,162.35,162.27,3.12]
[1730641375925,4.1095,162.35,162.24,3.1]
[1730641376626,3.0814,162.32,162.24,6.1828]
[1730641376815,3.1,162.32,162.22,2.6905]
[1730641377015,3.1,162.32,162.22,5.7905]
[1730641377217,3.0822,162.28,162.24,3.0829]
[1730641378221,3.0822,162.28,162.22,5.7905]
[1730641378427,3.0818,162.3,162.27,3.0822]
[1730641379315,3.0818,162.3,162.24,3.1]
[1730641379515,3.0818,162.3,162.26,3.0824]
[1730641381328,2.7778,162.35,162.24,3.1]
[1730641383138,2.7778,162.35,162.22,2.6905]
[1730641383425,21.2578,162.35,162.2,3.1]
[1730641383726,21.2578,162.35,162.21,3.0834]
[1730641383932,3.083,162.24,162.21,3.0834]
[1730641384126,3.083,162.24,162.19,3.1]
[1730641384328,3.1,162.29,162.19,3.1]
[1730641384519,4.0449,162.28,162.19,3.1]
[1730641385027,4.0449,162.28,162.18,3.084]
[1730641385331,3.0838,162.2,162.16,7.5697]
[1730641385531,3.0838,162.2,162.16,6.1843]
[1730641385731,3.0838,162.2,162.16,3.0843]
[1730641386631,3.0838,162.2,162.14,3.1]
[1730641386632,3.1,162.25,162.14,3.1]
[1730641386833,3.0839,162.19,162.15,3.0845]
[1730641387218,3.0839,162.19,162.14,3.1]
[1730641387426,3.0839,162.19,162.16,3.0844]
[1730641389331,3.0839,162.19,162.14,3.1]
[1730641389625,3.1,162.25,162.14,3.1]
[1730641389827,3.0836,162.21,162.14,3.1]
[1730641390015,3.0836,162.21,162.17,3.0841]
[1730641391024,3.0836,162.21,162.14,3.1]
[1730641391229,3.1,162.25,162.14,3.1]
[1730641391526,4.0449,162.28,162.14,3.1]
[1730641391726,7.1449,162.28,162.14,3.1]
[1730641391926,3.083,162.24,162.21,3.0834]
[1730641395033,3.0832,162.23,162.2,3.0835]
[1730641396034,25.6249,162.28,162.18,3.1]
[1730641396236,25.6249,162.28,162.15,3.1]
[1730641396632,3.0829,162.25,162.18,3.084]
[1730641396830,25.6249,162.28,162.18,3.084]
[1730641397029,25.6249,162.28,162.15,3.1]
[1730641397337,3.083,162.24,162.2,3.0835]
[1730641397627,25.6249,162.28,162.2,3.0835]
[1730641397832,25.6249,162.28,162.15,3.1]
[1730641398034,3.0836,162.21,162.17,3.0841]
[1730641398436,3.0836,162.21,162.15,3.1]
[1730641398837,3.0836,162.21,162.16,3.0843]
[1730641399039,3.0836,162.21,162.15,3.1]
[1730641399237,3.0832,162.23,162.15,3.1]
[1730641399448,3.0832,162.23,162.2,3.0835]
[1730641399948,3.0828,162.25,162.22,3.0832]
[1730641400733,3.0829,162.24,162.22,3.0832]
[1730641401033,3.0829,162.24,162.19,6.18847287]
[1730641401337,3.0829,162.24,162.21,3.0834]
[1730641401835,7.1449,162.28,162.18,3.0839]
[1730641402038,7.1449,162.28,162.17,3.1]
[1730641402333,3.0833,162.22,162.17,3.1]
[1730641403037,3.0835,162.21,162.18,3.084]
[1730641403539,25.6249,162.28,162.12,2.5953]
[1730641403729,25.6249,162.28,162.13,3.1]
[1730641404424,3.0841,162.18,162.15,3.0846]
[1730641405328,1.2688,162.21,162.12,1.2952]
[1730641405524,3.9843,162.21,162.11,3.1]
[1730641406039,3.0845,162.16,162.13,3.085]
[1730641406829,3.0846,162.15,162.12,3.0851]
[1730641409037,3.1,162.2,162.1,3.1]
[1730641409239,3.0849,162.14,162.09,3.1]
[1730641409841,3.0849,162.14,162.06,3.06802263]
[1730641410140,3.0849,162.14,162.11,3.0852]
[1730641411350,18.48,162.2,162.07,3.030698]
[1730641411535,3.9843,162.21,162.04,3.0867]
[1730641411536,18.48,162.18,162.04,3.0867]
[1730641411845,18.48,162.18,162.01,3.1]
[1730641412064,18.48,162.18,162.03,3.0868]
[1730641412342,18.48,162.18,162.01,3.02806025]
[1730641412650,18.48,162.18,162.03,3.0868]
[1730641413144,3.0864,162.06,162.03,3.0868]
[1730641413348,3.1,162.1,162.03,3.0868]
[1730641414036,3.1,162.1,162.01,3.02806025]
[1730641414638,3.0859,162.08,162.04,3.0866]
[1730641414947,3.0859,162.08,162.01,3.02806025]
[1730641414948,3.1,162.1,162.01,3.02806025]
[1730641415449,3.1,162.1,161.93,100.2286346]
[1730641415752,3.1,162.1,162.02,3.087]
[1730641415753,3.0865,162.06,162.02,3.087]
[1730641415948,3.1,162.1,161.94,3.9845]
[1730641416135,3.1,162.1,161.95,1.13408438]
[1730641416340,3.1,162.1,161.93,55.8286346]
[1730641416341,23.48,162.09,161.82,3.1]
[1730641416540,23.48,162.09,161.83,1.3415]
[1730641417046,3.0877,161.99,161.94,3.0886]
[1730641417637,3.1,162.01,161.86,3.1]
[1730641417941,3.1,162.01,161.76,3.52]
[1730641418150,2.556,162.0,161.79,2.6631]
[1730641418842,2.556,162.0,161.8,1.13503862]
[1730641419235,3.0888,161.93,161.87,3.0898]
[1730641419440,3.8,161.96,161.82,3.8]
[1730641419751,3.0888,161.93,161.87,3.0899]
[1730641420045,64.29664445,161.96,161.83,1.13519114]
[1730641420256,60.49664445,161.96,161.84,1.13515927]
[1730641420639,60.49664445,161.96,161.85,2.52578794]
[1730641420835,60.49664445,161.96,161.91,3.0891]
[1730641421544,3.0873,162.01,161.95,3.0884]
[1730641421749,3.8,162.04,161.95,3.0884]
[1730641422048,3.8,162.04,161.88,3.8]
[1730641422250,3.0876,162.0,161.92,3.0888]
[1730641422553,3.8,162.04,161.88,3.8]
[1730641422760,3.0875,162.0,161.94,3.0884]
[1730641423052,3.8,162.04,161.88,3.8]
[1730641423249,3.8,162.04,161.89,1.13481364]
[1730641423548,3.0875,162.0,161.94,3.0886]
[1730641423753,3.8,162.04,161.86,5.81718585]
[1730641423950,3.8,162.04,161.87,3.8]
[1730641424261,3.0878,161.99,161.92,3.089]
[1730641424456,3.8,162.04,161.92,3.089]
[1730641424656,3.088,161.98,161.92,3.089]
[1730641425262,3.088,161.98,161.92,3.0888]
[1730641425559,3.0881,161.97,161.92,3.0888]
[1730641425852,3.8,162.04,161.87,3.8]
[1730641426152,3.0876,161.99,161.88,1.13488484]
[1730641426351,3.8,162.04,161.89,1.13483206]
[1730641426554,3.0879,161.98,161.89,1.13483206]
[1730641426851,3.8,162.04,161.89,1.13483206]
[1730641427053,3.8,162.04,161.88,1.13483206]
[1730641427260,3.8,162.04,161.87,3.8]
[1730641427475,3.8,162.04,161.88,1.13486961]
[1730641428564,3.0877,161.99,161.94,3.0884]
[1730641429164,3.0874,162.01,161.92,3.089]
[1730641429349,3.8,162.04,161.87,3.8]
[1730641429556,3.8,162.04,161.88,1.13481766]
[1730641429763,3.0881,161.97,161.92,3.0888]
[1730641430157,3.9844,162.07,161.92,3.8]
[1730641430359,3.087,162.03,161.92,3.8]
[1730641430551,3.8,162.06,161.93,3.9369]
[1730641430968,3.087,162.03,161.93,3.9369]
[1730641431562,3.087,162.03,161.98,3.0878]
[1730641431760,3.8,162.06,161.93,3.9369]
[1730641432077,3.0869,162.03,161.93,3.9369]
[1730641432567,3.0875,162.0,161.96,3.0882]
[1730641432768,3.8,162.06,161.93,1.2834]
[1730641432975,3.8,162.06,161.93,2.5974]
[1730641433160,3.087,162.03,161.98,3.0878]
[1730641433560,3.8,162.06,161.98,3.0878]
[1730641433759,3.0871,162.03,161.98,3.0878]
[1730641434362,3.8,162.06,161.94,1.3959]
[1730641434563,3.8,162.06,161.93,2.5974]
[1730641435058,3.0873,162.01,161.97,3.088]
[1730641436064,3.0874,162.01,161.93,2.5974]
[1730641437767,3.9844,162.07,161.93,2.5974]
[1730641437966,1.3824,162.07,161.94,2.42115904]
[1730641438169,1.3824,162.07,161.94,4.31954269]
[1730641438360,3.0863,162.06,161.94,4.31954269]
[1730641438767,3.8,162.11,161.94,4.31954269]
[1730641438768,3.0857,162.09,162.06,3.0863]
[1730641438986,3.8,162.11,161.99,3.8]
[1730641439362,3.0861,162.08,161.99,3.8]
[1730641439569,3.8,162.11,161.99,3.8]
[1730641440074,3.0858,162.09,162.0,2.6281]
[1730641440269,1.3545,162.13,162.0,2.6281]
[1730641440772,1.3096,162.14,162.01,1.13409207]
[1730641441068,1.3096,162.14,162.0,2.6281]
[1730641441269,2.6641,162.14,162.0,2.6281]
[1730641442760,3.0853,162.12,162.01,1.13407117]
[1730641442962,2.6641,162.14,162.01,1.13407117]
[1730641443160,3.0851,162.13,162.05,3.0864]
[1730641443468,2.6641,162.14,162.05,3.8]
[1730641443669,3.0852,162.12,162.08,3.0858]
[1730641443979,3.0852,162.12,162.05,3.8]
[1730641444173,2.6641,162.14,162.08,3.0858]
[1730641444380,2.6641,162.14,162.05,3.8]
[1730641445775,2.6641,162.14,162.07,3.0861]
[1730641446275,3.0855,162.11,162.07,3.0861]
[1730641446572,2.6641,162.14,162.07,3.0861]
[1730641446881,2.6641,162.14,162.05,3.8]
[1730641447981,3.0855,162.11,162.08,3.0859]
[1730641448278,2.6641,162.14,162.05,3.8]
[1730641448675,2.6641,162.14,162.07,3.0861]
[1730641449283,3.0855,162.11,162.07,3.0861]
[1730641449474,2.6641,162.14,162.05,3.8]
[1730641449675,60.42339748,162.15,162.05,3.8]
[1730641449876,63.50819748,162.15,162.05,3.8]
[1730641450074,60.42339748,162.15,162.1,3.0854]
[1730641450676,3.0851,162.13,162.1,3.0854]
[1730641451974,60.42339748,162.15,162.09,3.0857]
[1730641451975,3.0852,162.12,162.09,3.0857]
[1730641452173,60.42339748,162.15,162.09,3.0857]
[1730641453273,3.0851,162.13,162.1,3.0855]
[1730641454289,3.0853,162.12,162.08,3.0858]
[1730641454671,3.0855,162.11,162.07,3.086]
[1730641454878,60.42339748,162.15,162.03,3.84]
[1730641455676,60.42339748,162.15,162.03,6.92451545]
[1730641456081,3.84,162.18,162.03,6.92451545]
[1730641456387,3.0849,162.14,162.1,3.0854]
[1730641456597,3.0849,162.14,162.03,6.92451545]
[1730641456777,3.0849,162.14,162.11,3.0853]
[1730641456974,3.84,162.18,162.03,6.92451545]
[1730641458388,22.32,162.18,162.03,6.92451545]
[1730641459080,3.0849,162.14,162.08,3.0858]
[1730641459281,22.32,162.18,162.08,3.0858]
[1730641459685,3.0849,162.14,162.07,3.086]
[1730641459990,3.0849,162.14,162.03,6.92451545]
[1730641460485,3.0852,162.12,162.03,6.92451545]
[1730641461186,22.32,162.18,162.03,6.92451545]
[1730641461389,3.0855,162.11,162.03,6.92451545]
[1730641461589,22.32,162.18,162.04,3.84]
[1730641461792,3.0848,162.14,162.07,3.086]
[1730641461989,22.32,162.18,162.04,3.84]
[1730641462694,3.0855,162.11,162.08,3.0858]
[1730641463882,3.0853,162.12,162.08,3.0859]
[1730641464085,3.0853,162.12,162.04,3.84]
[1730641464283,22.32,162.18,162.04,3.84]
[1730641464485,3.0848,162.14,162.08,3.0858]
[1730641464694,22.32,162.18,162.04,3.84]
[1730641464997,3.086,162.08,162.05,3.0865]
[1730641465297,22.32,162.13,162.04,3.84]
[1730641465496,4.036,162.12,162.0,2.6281]
[1730641465690,4.036,162.12,162.0,6.4681]
[1730641466696,4.036,162.12,162.0,2.6281]
[1730641466885,4.036,162.12,162.05,3.0864]
[1730641468393,3.086,162.08,162.05,3.0864]
[1730641468593,4.036,162.12,162.04,3.0865]
[1730641468790,3.086,162.08,162.01,3.84]
[1730641469089,4.036,162.12,162.01,3.84]
[1730641469490,3.0857,162.1,162.01,3.84]
[1730641470398,3.84,162.11,161.89,2.84930689]
[1730641470699,3.0866,162.05,161.9,6.35704299]
[1730641471001,3.0866,162.05,162.0,3.0873]
[1730641471694,3.0861,162.08,162.03,3.0867]
[1730641471887,3.0861,162.08,161.98,5.6994282]
[1730641472198,3.0861,162.08,161.99,1.3829]
[1730641472405,3.84,162.09,161.99,1.3829]
[1730641472598,1.3364,162.1,161.99,1.3829]
[1730641473197,4.422,162.1,162.05,3.0863]
[1730641473898,3.0857,162.09,162.05,3.0863]
[1730641474488,1.3364,162.1,162.05,3.0863]
[1730641474685,1.3364,162.1,162.02,3.84]
[1730641475195,4.4221,162.1,162.05,3.0864]
[1730641475589,1.3364,162.1,161.98,9.5394282]
[1730641475790,3.087,162.03,161.99,3.0876]
[1730641476097,1.3751,162.09,161.99,3.0876]
[1730641476295,3.0867,162.04,162.0,3.0874]
[1730641476892,3.0866,162.05,161.98,2.5662]
[1730641477291,3.84,162.08,161.98,2.5662]
[1730641477699,3.0871,162.02,161.98,3.0878]
[1730641478092,3.0871,162.02,161.95,3.84]
[1730641478093,1.3131,162.07,161.96,3.04084303]
[1730641478591,1.3131,162.07,161.95,3.84]
[1730641478801,3.0868,162.04,161.96,1.3692]
[1730641479093,1.3131,162.07,161.96,1.3692]
[1730641479403,3.0866,162.05,162.0,3.0873]
[1730641479801,1.3131,162.07,162.0,3.0873]
[1730641480703,3.0868,162.04,162.0,3.0873]
[1730641481490,1.3131,162.07,162.0,3.0873]
[1730641482402,1.3751,162.09,161.96,1.3692]
[1730641482594,1.3751,162.09,161.97,2.6719]
[1730641482800,4.422,162.1,161.97,2.6719]
[1730641483493,5.2307,162.15,161.97,2.6719]
[1730641483806,5.2307,162.15,161.98,1.13412821]
[1730641484101,3.0848,162.14,162.1,3.0854]
[1730641484398,1.2984,162.18,162.05,3.96]
[1730641484601,3.0842,162.18,162.13,3.0848]
[1730641484904,22.44,162.21,162.13,3.0848]
[1730641485092,3.96,162.21,162.13,3.0848]
[1730641485495,1.2761,162.22,162.1,3.96]
[1730641485990,1.2761,162.22,162.12,3.085]
[1730641486203,1.2761,162.22,162.1,3.96]
[1730641486497,3.0836,162.21,162.1,3.96]
[1730641486703,3.0836,162.21,162.16,3.0843]
[1730641488201,1.2761,162.22,162.16,3.0843]
[1730641488202,3.0836,162.2,162.16,3.0843]
[1730641490209,1.2761,162.22,162.16,3.0843]
[1730641490801,3.0838,162.2,162.16,3.0843]
[1730641491213,1.2761,162.22,162.16,3.0843]
[1730641491506,3.0839,162.19,162.15,3.0845]
[1730641493199,3.0839,162.19,162.14,3.03260464]
[1730641493505,3.0839,162.19,162.16,3.0843]
[1730641494210,3.0839,162.19,162.15,3.0845]
[1730641496011,3.0839,162.19,162.15,3.0844]
[1730641496404,1.2761,162.22,162.1,3.96]
[1730641497109,3.0846,162.15,162.12,3.085]
[1730641497500,1.2761,162.22,162.12,3.085]
[1730641497700,3.0845,162.16,162.12,3.085]
[1730641497912,1.2761,162.22,162.11,3.0852]
[1730641498107,1.2761,162.22,162.1,3.96]
[1730641498810,3.0839,162.19,162.11,3.0853]
[1730641499107,1.2761,162.22,162.11,3.0853]
[1730641499308,3.0847,162.15,162.11,3.0853]
[1730641499811,3.0846,162.16,162.12,3.085]
[1730641500414,1.2761,162.22,162.12,3.085]
[1730641500615,3.0846,162.15,162.12,3.085]
[1730641501825,3.0848,162.14,162.11,3.0853]
[1730641502015,3.96,162.2,162.11,3.0853]
[1730641502313,3.0847,162.15,162.11,3.0853]
[1730641502812,3.96,162.2,162.1,3.96]
[1730641503002,3.96,162.2,162.13,3.085]
[1730641503210,1.2761,162.22,162.1,3.96]
[1730641503707,3.0839,162.19,162.16,3.0843]
[1730641503906,1.2761,162.22,162.1,3.96]
[1730641504416,3.0843,162.17,162.13,3.0848]
[1730641505117,1.2761,162.22,162.1,3.96]
[1730641505718,3.0846,162.16,162.12,3.0851]
[1730641505915,1.2761,162.22,162.1,3.96]
[1730641506306,3.0847,162.15,162.11,3.0852]
[1730641506817,1.2761,162.22,162.1,3.96]
[1730641507001,3.0844,162.17,162.1,3.96]
[1730641507202,1.2761,162.22,162.1,3.96]
[1730641507413,1.2761,162.22,162.15,3.0846]
[1730641508805,1.2761,162.22,162.1,3.96]
[1730641509337,1.2761,162.22,162.06,4.107]
[1730641509507,18.48,162.2,162.06,1.3917]
[1730641509708,2.6881,162.19,162.04,3.88]
[1730641509902,3.0859,162.09,162.05,3.0864]
[1730641510110,18.48,162.17,162.03,3.88]